fUSD/lending_fUSD_20240614
["ID","MTS","AMOUNT","RATE_DAILY","PERIOD"]
[329418177,1718328723538,-500.0,0.00025479,3]
[329418178,1718328723548,-1181.16,0.00025479,3]
[329418179,1718328723559,-500.0,0.00025479,3]
[329418180,1718328723570,-500.0,0.00025479,3]
[329418181,1718328723583,-500.0,0.00025479,3]
[329418182,1718328723594,-740.73,0.00025479,3]
[329418183,1718328723605,-584.95,0.00025479,3]
[329418184,1718328723616,-4766.45,0.00025479,3]
[329418185,1718328723635,-932.3,0.00025479,3]
[329418186,1718328723653,-151.0,0.00025479,7]
[329418187,1718328723663,-500.0,0.00025479,3]
[329418188,1718328723674,-2700.76,0.00025479,3]
[329418189,1718328723686,-500.0,0.00025479,3]
[329418190,1718328723698,-151.0,0.00025479,7]
[329418191,1718328723713,-151.0,0.00025479,7]
[329418192,1718328723730,-151.0,0.00025479,7]
[329418193,1718328723743,-150.0,0.000256,4]
[329418194,1718328723754,-1782.0,0.000256,2]
[329418195,1718328723765,-489.0,0.000257,9]
[329418196,1718328723776,-305.0,0.000257,2]
[329418197,1718328723791,-150.0,0.000257,2]
[329418198,1718328723802,-16640.4061676,0.00025746,2]
[329418199,1718328723818,-469.9813215,0.00025746,2]
[329418200,1718328723848,-179.16919,0.00025746,7]
[329418201,1718328723866,-36809.1342594,0.00025746,2]
[329418202,1718328723880,-179.16919,0.00025746,7]
[329418203,1718328723900,-3125.9727523,0.00025746,2]
[329418204,1718328723912,-584.29582982,0.00025746,2]
[329418205,1718328723938,-151.0,0.00025746,7]
[329418206,1718328723964,-500.0,0.00025753,3]
[329418207,1718328723985,-500.0,0.00025753,3]
[329418208,1718328724006,-176.64,0.00025753,3]
[329418209,1718328724026,-362.44778801,0.00025753,3]
[329418210,1718328724040,-228.54,0.00025753,3]
[329418211,1718328724087,-500.0,0.00025753,3]
[329418212,1718328724097,-500.0,0.00025753,3]
[329418213,1718328724108,-500.0,0.00025753,3]
[329418214,1718328724128,-261.3,0.00025753,3]
[329418215,1718328724156,-500.0,0.00025753,3]
[329418216,1718328724166,-500.0,0.00025753,3]
[329418217,1718328724192,-182.64,0.00025753,3]
[329418218,1718328724210,-500.0,0.00025753,3]
[329418219,1718328724236,-500.0,0.00025753,3]
[329418220,1718328724248,-500.0,0.00025753,3]
[329418221,1718328724259,-500.0,0.00025753,3]
[329418222,1718328724283,-500.0,0.00025753,3]
[329418223,1718328724294,-461.30705419,0.00025753,3]
[329418224,1718328724323,-500.0,0.00025753,3]
[329418225,1718328724361,-500.0,0.00025753,3]
[329418226,1718328724385,-500.0,0.00025753,3]
[329418227,1718328724405,-500.0,0.00025753,3]
[329418228,1718328724438,-500.0,0.00025753,3]
[329418229,1718328724481,-500.0,0.00025753,3]
[329418230,1718328724504,-500.0,0.00025753,3]
[329418231,1718328724533,-500.0,0.00025753,3]
[329418232,1718328724551,-500.0,0.00025753,3]
[329418233,1718328724567,-500.0,0.00025753,3]
[329418234,1718328724588,-500.0,0.00025753,3]
[329418235,1718328724602,-636.78,0.00025753,3]
[329418236,1718328724617,-535.98,0.00025753,3]
[329418237,1718328724649,-500.0,0.00025753,3]
[329418238,1718328724667,-500.0,0.00025753,3]
[329418239,1718328724686,-500.0,0.00025753,3]
[329418240,1718328724705,-500.0,0.00025753,3]
[329418241,1718328724718,-500.0,0.00025753,3]
[329418242,1718328724745,-500.0,0.00025753,3]
[329418243,1718328724762,-500.0,0.00025753,3]
[329418244,1718328724783,-500.0,0.00025753,3]
[329418245,1718328724803,-500.0,0.00025753,3]
[329418246,1718328724817,-500.0,0.00025753,3]
[329418247,1718328724872,-500.0,0.00025753,3]
[329418248,1718328724904,-500.0,0.00025753,3]
[329418249,1718328724928,-500.0,0.00025753,3]
[329418250,1718328724949,-500.0,0.00025753,3]
[329418251,1718328724967,-500.0,0.00025753,3]
[329418252,1718328724987,-500.0,0.00025753,3]
[329418253,1718328725004,-539.14,0.00025753,3]
[329418254,1718328725023,-500.0,0.00025753,3]
[329418255,1718328725040,-500.0,0.00025753,3]
[329418256,1718328725057,-500.0,0.00025753,3]
[329418257,1718328725073,-539.62,0.00025753,3]
[329418258,1718328725090,-500.0,0.00025753,3]
[329418259,1718328725107,-500.0,0.00025753,3]
[329418260,1718328725124,-500.0,0.00025753,3]
[329418261,1718328725145,-804.49,0.00025753,3]
[329418262,1718328725161,-500.0,0.00025753,3]
[329418263,1718328725179,-500.0,0.00025753,3]
[329418264,1718328725194,-500.0,0.00025753,3]
[329418265,1718328725217,-572.62,0.00025753,3]
[329418266,1718328725234,-500.0,0.00025753,3]
[329418267,1718328725266,-500.0,0.00025753,3]
[329418268,1718328725284,-500.0,0.00025753,3]
[329418269,1718328725305,-500.0,0.00025753,3]
[329418270,1718328725324,-571.98,0.00025753,3]
[329418271,1718328725357,-774.54,0.00025753,3]
[329418272,1718328725373,-986.18,0.00025753,3]
[329418273,1718328725400,-500.0,0.00025753,3]
[329418274,1718328725415,-500.0,0.00025753,3]
[329418275,1718328725433,-500.0,0.00025753,3]
[329418276,1718328725465,-500.0,0.00025753,3]
[329418277,1718328725497,-500.0,0.00025753,3]
[329418278,1718328725535,-1157.92,0.00025753,3]
[329418279,1718328725555,-500.0,0.00025753,3]
[329418280,1718328725579,-500.0,0.00025753,3]
[329418281,1718328725601,-500.0,0.00025753,3]
[329418282,1718328725617,-500.0,0.00025753,3]
[329418283,1718328725635,-500.0,0.00025753,3]
[329418284,1718328725650,-500.0,0.00025753,3]
[329418285,1718328725672,-500.0,0.00025753,3]
[329418286,1718328725698,-500.0,0.00025753,3]
[329418287,1718328725717,-500.0,0.00025753,3]
[329418288,1718328725734,-500.0,0.00025753,3]
[329418289,1718328725755,-500.0,0.00025753,3]
[329418290,1718328725780,-578.45428931,0.00025753,3]
[329418291,1718328725796,-500.0,0.00025753,3]
[329418292,1718328725811,-500.0,0.00025753,3]
[329418293,1718328725827,-500.0,0.00025753,3]
[329418294,1718328725847,-500.0,0.00025753,3]
[329418295,1718328725863,-527.34341355,0.00025753,3]
[329418296,1718328725878,-500.0,0.00025753,3]
[329418297,1718328725895,-500.0,0.00025753,3]
[329418298,1718328725910,-500.0,0.00025753,3]
[329418299,1718328725924,-500.0,0.00025753,3]
[329418300,1718328725945,-500.0,0.00025753,3]
[329418301,1718328725961,-500.0,0.00025753,3]
[329418302,1718328725991,-500.0,0.00025753,3]
[329418303,1718328726006,-500.0,0.00025753,3]
[329418304,1718328726022,-611.61,0.00025753,3]
[329418305,1718328726038,-583.88,0.00025753,3]
[329418306,1718328726055,-500.0,0.00025753,3]
[329418307,1718328726069,-500.0,0.00025753,3]
[329418308,1718328726085,-500.0,0.00025753,3]
[329418309,1718328726119,-500.0,0.00025753,3]
[329418310,1718328726137,-500.0,0.00025753,3]
[329418311,1718328726172,-548.53,0.00025753,3]
[329418312,1718328726187,-500.0,0.00025753,3]
[329418313,1718328726210,-500.0,0.00025753,3]
[329418314,1718328726239,-692.1,0.00025753,3]
[329418315,1718328726258,-634.92,0.00025753,3]
[329418316,1718328726288,-500.0,0.00025753,3]
[329418317,1718328726303,-588.02,0.00025753,3]
[329418318,1718328726321,-386.5311088,0.00025753,3]
[329418319,1718328726335,-500.0,0.00025753,3]
[329418320,1718328726372,-500.0,0.00025753,3]
[329418321,1718328726392,-660.68,0.00025753,3]
[329418322,1718328726423,-960.66,0.00025753,3]
[329418323,1718328726447,-450.3559159,0.00025753,3]
[329418324,1718328726465,-500.0,0.00025753,3]
[329418325,1718328726490,-500.0,0.00025753,3]
[329418326,1718328726520,-1302.28,0.00025753,3]
[329418327,1718328726537,-528.91,0.00025753,3]
[329418328,1718328726560,-500.0,0.00025753,3]
[329418329,1718328726578,-500.0,0.00025753,3]
[329418330,1718328726596,-500.0,0.00025753,3]
[329418331,1718328726621,-500.0,0.00025753,3]
[329418332,1718328726637,-617.28,0.00025753,3]
[329418333,1718328726654,-500.0,0.00025753,3]
[329418334,1718328726676,-500.0,0.00025753,3]
[329418335,1718328726690,-565.86,0.00025753,3]
[329418336,1718328726708,-500.0,0.00025753,3]
[329418337,1718328726726,-500.0,0.00025753,3]
[329418338,1718328726760,-500.0,0.00025753,3]
[329418339,1718328726781,-500.0,0.00025753,3]
[329418340,1718328726803,-500.0,0.00025753,3]
[329418341,1718328726842,-883.98,0.00025753,3]
[329418342,1718328726861,-528.45,0.00025753,3]
[329418343,1718328726894,-500.0,0.00025753,3]
[329418344,1718328726913,-742.73,0.00025753,3]
[329418345,1718328726939,-500.0,0.00025753,3]
[329418346,1718328726954,-500.0,0.00025753,3]
[329418347,1718328726981,-500.0,0.00025753,3]
[329418348,1718328726997,-500.0,0.00025753,3]
[329418349,1718328727012,-500.0,0.00025753,3]
[329418350,1718328727043,-500.0,0.00025753,3]
[329418351,1718328727057,-500.0,0.00025753,3]
[329418352,1718328727074,-500.0,0.00025753,3]
[329418353,1718328727089,-500.0,0.00025753,3]
[329418354,1718328727104,-500.0,0.00025753,3]
[329418355,1718328727324,-532.2,0.00025753,3]
[329418356,1718328727407,-500.0,0.00025753,3]
[329418357,1718328727424,-400.18756788,0.00025753,3]
[329418358,1718328727441,-500.0,0.00025753,3]
[329418359,1718328727454,-500.0,0.00025753,3]
[329418360,1718328727465,-500.0,0.00025753,3]
[329418361,1718328727477,-598.84,0.00025753,3]
[329418362,1718328727505,-500.0,0.00025753,3]
[329418363,1718328727521,-500.0,0.00025753,3]
[329418364,1718328727537,-500.0,0.00025753,3]
[329418365,1718328727556,-500.0,0.00025753,3]
[329418366,1718328727567,-500.0,0.00025753,3]
[329418367,1718328727580,-719.93,0.00025753,3]
[329418368,1718328727591,-500.0,0.00025753,3]
[329418369,1718328727606,-500.0,0.00025753,3]
[329418370,1718328727621,-500.0,0.00025753,3]
[329418371,1718328727632,-500.0,0.00025753,3]
[329418372,1718328727654,-500.0,0.00025753,3]
[329418373,1718328727670,-500.0,0.00025753,3]
[329418374,1718328727700,-500.0,0.00025753,3]
[329418375,1718328727716,-500.0,0.00025753,3]
[329418376,1718328727728,-500.0,0.00025753,3]
[329418377,1718328727764,-500.0,0.00025753,3]
[329418378,1718328727777,-500.0,0.00025753,3]
[329418379,1718328727792,-500.0,0.00025753,3]
[329418380,1718328727804,-500.0,0.00025753,3]
[329418381,1718328727817,-500.0,0.00025753,3]
[329418382,1718328727840,-997.89,0.00025753,3]
[329418383,1718328727858,-500.0,0.00025753,3]
[329418384,1718328727870,-500.0,0.00025753,3]
[329418385,1718328727882,-500.0,0.00025753,3]
[329418386,1718328727898,-500.0,0.00025753,3]
[329418387,1718328727909,-500.0,0.00025753,3]
[329418388,1718328727921,-1232.27,0.00025753,3]
[329418389,1718328727936,-500.0,0.00025753,3]
[329418390,1718328727964,-500.0,0.00025753,3]
[329418391,1718328727976,-500.0,0.00025753,3]
[329418392,1718328727996,-500.0,0.00025753,3]
[329418393,1718328728011,-500.0,0.00025753,3]
[329418394,1718328728026,-500.0,0.00025753,3]
[329418395,1718328728047,-695.7,0.00025753,3]
[329418396,1718328728059,-500.0,0.00025753,3]
[329418397,1718328728075,-545.28,0.00025753,3]
[329418398,1718328728115,-552.3,0.00025753,3]
[329418399,1718328728147,-500.0,0.00025753,3]
[329418400,1718328728168,-500.0,0.00025753,3]
[329418401,1718328728186,-500.0,0.00025753,3]
[329418402,1718328728207,-500.0,0.00025753,3]
[329418403,1718328728224,-500.0,0.00025753,3]
[329418404,1718328728271,-500.0,0.00025753,3]
[329418405,1718328728309,-922.06,0.00025753,3]
[329418406,1718328728333,-1020.66,0.00025753,3]
[329418407,1718328728360,-500.0,0.00025753,3]
[329418408,1718328728371,-500.0,0.00025753,3]
[329418409,1718328728385,-1333.56,0.00025753,3]
[329418410,1718328728401,-500.0,0.00025753,3]
[329418411,1718328728431,-578.22,0.00025753,3]
[329418412,1718328728453,-500.0,0.00025753,3]
[329418413,1718328728472,-509.87,0.00025753,3]
[329418414,1718328728485,-573.17383084,0.00025753,3]
[329418415,1718328728498,-500.0,0.00025753,3]
[329418416,1718328728520,-904.07,0.00025753,3]
[329418417,1718328728539,-556.85,0.00025753,3]
[329418418,1718328728555,-500.0,0.00025753,3]
[329418419,1718328728566,-903.49,0.00025753,3]
[329418420,1718328728578,-500.0,0.00025753,3]
[329418421,1718328728589,-512.2,0.00025753,3]
[329418422,1718328728602,-500.0,0.00025753,3]
[329418423,1718328728616,-500.0,0.00025753,3]
[329418424,1718328728630,-1002.39,0.00025753,3]
[329418425,1718328728645,-738.2,0.00025753,3]
[329418426,1718328728660,-500.0,0.00025753,3]
[329418427,1718328728677,-500.0,0.00025753,3]
[329418428,1718328728729,-500.0,0.00025753,3]
[329418429,1718328728751,-500.0,0.00025753,3]
[329418430,1718328728768,-500.0,0.00025753,3]
[329418431,1718328728783,-798.44,0.00025753,3]
[329418432,1718328728796,-500.0,0.00025753,3]
[329418433,1718328728809,-262.1,0.00025753,3]
[329418434,1718328728822,-500.0,0.00025753,3]
[329418435,1718328728837,-500.0,0.00025753,3]
[329418436,1718328728853,-500.0,0.00025753,3]
[329418437,1718328728866,-500.0,0.00025753,3]
[329418438,1718328728885,-500.0,0.00025753,3]
[329418439,1718328728897,-500.0,0.00025753,3]
[329418440,1718328728910,-591.59,0.00025753,3]
[329418441,1718328728925,-500.0,0.00025753,3]
[329418442,1718328728937,-500.0,0.00025753,3]
[329418443,1718328728949,-500.0,0.00025753,3]
[329418444,1718328728961,-659.35,0.00025753,3]
[329418445,1718328728973,-500.0,0.00025753,3]
[329418446,1718328728997,-333.56288668,0.00025753,3]
[329418447,1718328729009,-569.74,0.00025753,3]
[329418448,1718328729021,-621.41,0.00025753,3]
[329418449,1718328729042,-549.56,0.00025753,3]
[329418450,1718328729054,-500.0,0.00025753,3]
[329418451,1718328729069,-630.44,0.00025753,3]
[329418452,1718328729100,-500.0,0.00025753,3]
[329418453,1718328729116,-500.0,0.00025753,3]
[329418454,1718328729148,-500.0,0.00025753,3]
[329418455,1718328729184,-500.0,0.00025753,3]
[329418456,1718328729203,-500.0,0.00025753,3]
[329418457,1718328729222,-500.0,0.00025753,3]
[329418458,1718328729237,-500.0,0.00025753,3]
[329418459,1718328729260,-2024.27,0.00025753,3]
[329418460,1718328729291,-550.31,0.00025753,3]
[329418461,1718328729307,-661.6,0.00025753,3]
[329418462,1718328729320,-500.0,0.00025753,3]
[329418463,1718328729333,-1051.97,0.00025753,3]
[329418464,1718328729349,-500.0,0.00025753,3]
[329418465,1718328729365,-560.51,0.00025753,3]
[329418466,1718328729381,-2230.14,0.00025753,3]
[329418467,1718328729393,-699.68,0.00025753,3]
[329418468,1718328729407,-500.0,0.00025753,3]
[329418469,1718328729419,-1026.29,0.00025753,3]
[329418470,1718328729432,-500.0,0.00025753,3]
[329418471,1718328729446,-6651.01,0.00025753,3]
[329418472,1718328729458,-500.0,0.00025753,3]
[329418473,1718328729473,-500.0,0.00025753,3]
[329418474,1718328729487,-500.0,0.00025753,3]
[329418475,1718328729508,-905.81,0.00025753,3]
[329418476,1718328729523,-500.0,0.00025753,3]
[329418477,1718328729559,-500.0,0.00025753,3]
[329418478,1718328729585,-807.05,0.00025753,3]
[329418479,1718328729612,-500.0,0.00025753,3]
[329418480,1718328729628,-2365.65,0.00025753,3]
[329418481,1718328729643,-500.0,0.00025753,3]
[329418482,1718328729663,-500.0,0.00025753,3]
[329418483,1718328729685,-179.16919,0.00025753,7]
[329418484,1718328729705,-500.0,0.00025753,3]
[329418485,1718328729731,-593.15,0.00025753,3]
[329418486,1718328729750,-500.0,0.00025753,3]
[329418487,1718328729764,-2105.93,0.00025753,3]
[329418488,1718328729780,-179.169191,0.00025753,7]
[329418489,1718328729794,-843.89,0.00025753,3]
[329418490,1718328729816,-500.0,0.00025753,3]
[329418491,1718328729853,-393.25385016,0.00025753,3]
[329418492,1718328729870,-500.0,0.00025753,3]
[329418493,1718328729894,-500.0,0.00025753,3]
[329418494,1718328729912,-598.1,0.00025753,3]
[329418495,1718328729939,-7638.61,0.00025753,3]
[329418496,1718328729955,-699.16,0.00025753,3]
[329418497,1718328729979,-3190.81,0.00025753,3]
[329418498,1718328730006,-3649.11,0.00025753,3]
[329418499,1718328730024,-500.0,0.00025753,3]
[329418500,1718328730048,-1217.69,0.00025753,3]
[329418501,1718328730072,-2721.15,0.00025753,3]
[329418502,1718328730085,-500.0,0.00025753,3]
[329418503,1718328730115,-500.0,0.00025753,3]
[329418504,1718328730167,-500.0,0.00025753,3]
[329418505,1718328730189,-425.84835193,0.00025753,3]
[329418506,1718328730209,-1011.07,0.00025753,3]
[329418507,1718328730222,-1346.53,0.00025753,3]
[329418508,1718328730238,-516.4342356,0.00025753,3]
[329418509,1718328730265,-13586.59,0.00025753,3]
[329418510,1718328730282,-2862.08,0.00025753,3]
[329418511,1718328730307,-680.82,0.00025753,3]
[329418512,1718328730326,-2933.81,0.00025753,3]
[329418513,1718328730361,-761.51,0.00025753,3]
[329418514,1718328730376,-500.0,0.00025753,3]
[329418515,1718328730397,-500.0,0.00025753,3]
[329418516,1718328730418,-2631.81,0.00025753,3]
[329418517,1718328730451,-563.33,0.00025753,3]
[329418518,1718328730468,-1745.88,0.00025753,3]
[329418519,1718328730516,-500.0,0.00025753,3]
[329418520,1718328730544,-500.0,0.00025753,3]
[329418521,1718328730595,-500.0,0.00025753,3]
[329418522,1718328730631,-1902.96,0.00025753,3]
[329418523,1718328730651,-773.16,0.00025753,3]
[329418524,1718328730678,-2172.15,0.00025753,3]
[329418525,1718328730696,-1825.98,0.00025753,3]
[329418526,1718328730709,-500.0,0.00025753,3]
[329418527,1718328730724,-500.0,0.00025753,3]
[329418528,1718328730756,-679.92,0.00025753,3]
[329418529,1718328730777,-500.0,0.00025753,3]
[329418530,1718328730802,-986.43,0.00025753,3]
[329418531,1718328730818,-500.0,0.00025753,3]
[329418532,1718328730830,-1829.1,0.00025753,3]
[329418533,1718328730850,-1832.39,0.00025753,3]
[329418534,1718328730882,-1082.5,0.00025753,3]
[329418535,1718328730905,-638.87,0.00025753,3]
[329418536,1718328730919,-2157.56,0.00025753,3]
[329418537,1718328730939,-906.62,0.00025753,3]
[329418538,1718328730953,-500.0,0.00025753,3]
[329418539,1718328730970,-500.0,0.00025753,3]
[329418540,1718328730983,-690.46,0.00025753,3]
[329418541,1718328730997,-500.0,0.00025753,3]
[329418542,1718328731019,-988.9,0.00025753,3]
[329418543,1718328731051,-731.35,0.00025753,3]
[329418544,1718328731065,-27287.16,0.00025753,3]
[329418545,1718328731079,-613.74,0.00025753,3]
[329418546,1718328731094,-500.0,0.00025753,3]
[329418547,1718328731112,-500.0,0.00025753,3]
[329418548,1718328731126,-406.94967505,0.00025753,3]
[329418549,1718328731159,-500.0,0.00025753,3]
[329418550,1718328731218,-910.96,0.00025753,3]
[329418551,1718328731257,-6932.08,0.00025753,3]
[329418552,1718328731285,-500.0,0.00025753,3]
[329418553,1718328731300,-974.92,0.00025753,3]
[329418554,1718328731325,-2616.08,0.00025753,3]
[329418555,1718328731342,-369.22563118,0.00025753,3]
[329418556,1718328731361,-1080.82,0.00025753,3]
[329418557,1718328731378,-817.09,0.00025753,3]
[329418558,1718328731403,-709.94,0.00025753,3]
[329418559,1718328731467,-500.0,0.00025753,3]
[329418560,1718328731483,-500.0,0.00025753,3]
[329418561,1718328731505,-1643.14,0.00025753,3]
[329418562,1718328731530,-6948.28,0.00025753,3]
[329418563,1718328731556,-2321.35,0.00025753,3]
[329418564,1718328731568,-500.0,0.00025753,3]
[329418565,1718328731579,-2845.46,0.00025753,3]
[329418566,1718328731593,-500.0,0.00025753,3]
[329418567,1718328731604,-1414.89,0.00025753,3]
[329418568,1718328731619,-500.0,0.00025753,3]
[329418569,1718328731641,-500.0,0.00025753,3]
[329418570,1718328731676,-13659.59,0.00025753,3]
[329418571,1718328731688,-1408.71,0.00025753,3]
[329418572,1718328731722,-1393.56,0.00025753,3]
[329418573,1718328731738,-2259.66,0.00025753,3]
[329418574,1718328731750,-1111.31,0.00025753,3]
[329418575,1718328731772,-500.0,0.00025753,3]
[329418576,1718328731784,-500.0,0.00025753,3]
[329418577,1718328731802,-500.0,0.00025753,3]
[329418578,1718328731818,-500.0,0.00025753,3]
[329418579,1718328731830,-500.0,0.00025753,3]
[329418580,1718328731840,-10075.29,0.00025753,3]
[329418581,1718328731852,-500.0,0.00025753,3]
[329418582,1718328731864,-500.0,0.00025753,3]
[329418583,1718328731875,-500.0,0.00025753,3]
[329418584,1718328731889,-943.27,0.00025753,3]
[329418585,1718328731902,-3909.82,0.00025753,3]
[329418586,1718328731916,-1168.64,0.00025753,3]
[329418587,1718328731933,-1483.04,0.00025753,3]
[329418588,1718328731945,-500.0,0.00025753,3]
[329418589,1718328731962,-500.0,0.00025753,3]
[329418590,1718328731982,-4875.13,0.00025753,3]
[329418591,1718328732020,-500.0,0.00025753,3]
[329418592,1718328732042,-500.0,0.00025753,3]
[329418593,1718328732056,-651.52,0.00025753,3]
[329418594,1718328732082,-1146.24,0.00025753,3]
[329418595,1718328732115,-500.0,0.00025753,3]
[329418596,1718328732134,-2483.67,0.00025753,3]
[329418597,1718328732147,-1056.72,0.00025753,3]
[329418598,1718328732165,-500.0,0.00025753,3]
[329418599,1718328732191,-2980.85,0.00025753,3]
[329418600,1718328732208,-3759.26,0.00025753,3]
[329418601,1718328732227,-500.0,0.00025753,3]
[329418602,1718328732259,-2040.13,0.00025753,3]
[329418603,1718328732272,-726.56,0.00025753,3]
[329418604,1718328732293,-500.0,0.00025753,3]
[329418605,1718328732309,-949.95,0.00025753,3]
[329418606,1718328732327,-1026.42,0.00025753,3]
[329418607,1718328732350,-1419.27,0.00025753,3]
[329418608,1718328732361,-500.0,0.00025753,3]
[329418609,1718328732373,-1958.96,0.00025753,3]
[329418610,1718328732384,-500.0,0.00025753,3]
[329418611,1718328732416,-500.0,0.00025753,3]
[329418612,1718328732430,-1457.15,0.00025753,3]
[329418613,1718328732460,-500.0,0.00025753,3]
[329418614,1718328732471,-2166.24,0.00025753,3]
[329418615,1718328732489,-1164.45,0.00025753,3]
[329418616,1718328732521,-1585.82,0.00025753,3]
[329418617,1718328732533,-1370.89,0.00025753,3]
[329418618,1718328732545,-500.0,0.00025753,3]
[329418619,1718328732563,-500.0,0.00025753,3]
[329418620,1718328732574,-500.0,0.00025753,3]
[329418621,1718328732585,-500.0,0.00025753,3]
[329418622,1718328732598,-979.9,0.00025753,3]
[329418623,1718328732610,-1246.72,0.00025753,3]
[329418624,1718328732627,-617.62,0.00025753,3]
[329418625,1718328732647,-1310.68,0.00025753,3]
[329418626,1718328732659,-500.0,0.00025753,3]
[329418627,1718328732671,-976.37,0.00025753,3]
[329418628,1718328732683,-928.5,0.00025753,3]
[329418629,1718328732702,-2479.24,0.00025753,3]
[329418630,1718328732716,-1915.78,0.00025753,3]
[329418631,1718328732733,-500.0,0.00025753,3]
[329418632,1718328732749,-9450.18,0.00025753,3]
[329418633,1718328732766,-758.88,0.00025753,3]
[329418634,1718328732784,-500.0,0.00025753,3]
[329418635,1718328732796,-500.0,0.00025753,3]
[329418636,1718328732810,-4571.95,0.00025753,3]
[329418637,1718328732826,-1010.1,0.00025753,3]
[329418638,1718328732848,-3729.75,0.00025753,3]
[329418639,1718328732861,-1291.17,0.00025753,3]
[329418640,1718328732899,-1160.9,0.00025753,3]
[329418641,1718328732911,-1442.54,0.00025753,3]
[329418642,1718328732924,-500.0,0.00025753,3]
[329418643,1718328732939,-1437.83,0.00025753,3]
[329418644,1718328732958,-1078.82,0.00025753,3]
[329418645,1718328732970,-3179.39,0.00025753,3]
[329418646,1718328732984,-4644.91,0.00025753,3]
[329418647,1718328733015,-660.45,0.00025753,3]
[329418648,1718328733053,-500.0,0.00025753,3]
[329418649,1718328733066,-500.0,0.00025753,3]
[329418650,1718328733087,-3968.87,0.00025753,3]
[329418651,1718328733107,-500.0,0.00025753,3]
[329418652,1718328733121,-1085.81,0.00025753,3]
[329418653,1718328733134,-2460.17,0.00025753,3]
[329418654,1718328733151,-3852.04,0.00025753,3]
[329418655,1718328733175,-4640.65,0.00025753,3]
[329418656,1718328733190,-855.86,0.00025753,3]
[329418657,1718328733209,-1149.69,0.00025753,3]
[329418658,1718328733234,-164.775248,0.00025753,7]
[329418659,1718328733255,-2477.54,0.00025753,3]
[329418660,1718328733282,-781.38,0.00025753,3]
[329418661,1718328733316,-2739.81,0.00025753,3]
[329418662,1718328733340,-500.0,0.00025753,3]
[329418663,1718328733358,-164.775258,0.00025753,7]
[329418664,1718328733375,-500.0,0.00025753,3]
[329418665,1718328733407,-22917.63,0.00025753,3]
[329418666,1718328733438,-2363.24,0.00025753,3]
[329418667,1718328733458,-801.82,0.00025753,3]
[329418668,1718328733537,-1182.53,0.00025753,3]
[329418669,1718328733555,-1037.71,0.00025753,3]
[329418670,1718328733566,-2489.52,0.00025753,3]
[329418671,1718328733578,-500.0,0.00025753,3]
[329418672,1718328733595,-671.04,0.00025753,3]
[329418673,1718328733608,-2448.61,0.00025753,3]
[329418674,1718328733620,-709.17,0.00025753,3]
[329418675,1718328733638,-2250.55,0.00025753,3]
[329418676,1718328733652,-663.02,0.00025753,3]